bitfinex-derivatives/quotes_BTCF0:USTF0_20250108
["timestamp","ask_amount","ask_price","bid_price","bid_amount"]
[1736380220931,0.03157566,95250.0,95249.0,0.884147]
[1736380222023,0.03257566,95250.0,95249.0,0.884147]
[1736380222328,0.03357566,95250.0,95249.0,0.884147]
[1736380238332,0.03357566,95250.0,95249.0,0.36024]
[1736380238534,0.03357566,95250.0,95241.0,0.37136455]
[1736380238731,0.05251,95242.0,95230.0,0.46675236]
[1736380238927,0.15,95242.0,95230.0,0.3608]
[1736380239131,0.052513,95237.0,95230.0,0.3608]
[1736380240031,0.22159845,95243.0,95230.0,0.3608]
[1736380240232,0.22159845,95243.0,95155.0,0.03677654]
[1736380240233,0.3608,95231.0,95215.0,0.0008]
[1736380240535,0.3608,95231.0,95211.0,0.25076325]
[1736380240536,0.052523,95220.0,95211.0,0.25076325]
[1736380240727,0.14,95220.0,95211.0,0.25076325]
[1736380240933,0.052523,95219.0,95211.0,0.25076325]
[1736380241243,0.192523,95219.0,95211.0,0.25076325]
[1736380241437,0.192523,95219.0,95215.0,0.001]
[1736380241633,0.136,95218.0,95215.0,0.001]
[1736380241837,0.276,95218.0,95215.0,0.001]
[1736380242432,0.276,95218.0,95215.0,0.004]
[1736380243031,0.276,95218.0,95211.0,0.002]
[1736380243643,0.276,95218.0,95209.0,0.052528]
[1736380244345,0.276,95218.0,95211.0,0.002]
[1736380244843,0.276,95218.0,95209.0,0.055528]
[1736380245938,0.276,95218.0,95211.0,0.001]
[1736380246339,0.276,95218.0,95211.0,0.003]
[1736380246847,0.276,95218.0,95211.0,0.002]
[1736380247734,0.276,95218.0,95209.0,0.056528]
[1736380248347,0.052525,95215.0,95209.0,0.004]
[1736380248540,0.192525,95215.0,95209.0,0.004]
[1736380249343,0.192525,95215.0,95206.0,0.01029928]
[1736380249540,0.14,95215.0,95211.0,0.003]
[1736380249741,0.052527,95213.0,95211.0,0.003]
[1736380250043,0.202527,95213.0,95211.0,0.003]
[1736380250344,0.202527,95213.0,95209.0,0.001]
[1736380251343,0.052527,95212.0,95204.0,2.03450093]
[1736380251543,0.202527,95212.0,95204.0,2.03370093]
[1736380251950,0.052528,95211.0,95204.0,2.03370093]
[1736380252151,0.212528,95211.0,95204.0,0.523171]
[1736380252339,0.052528,95210.0,95204.0,0.523171]
[1736380252544,0.192528,95210.0,95204.0,0.523171]
[1736380253643,0.192528,95210.0,95204.0,0.525171]
[1736380253844,0.192528,95210.0,95204.0,0.526171]
[1736380254648,0.192528,95210.0,95204.0,0.055531]
[1736380254842,0.14,95210.0,95204.0,0.003]
[1736380255149,0.05253,95208.0,95204.0,0.003]
[1736380255338,0.20253,95208.0,95204.0,0.003]
[1736380256550,0.20253,95208.0,95204.0,0.001]
[1736380256855,0.20253,95208.0,95204.0,0.003]
[1736380257949,0.27412945,95205.0,95204.0,0.003]
[1736380258150,0.36159845,95205.0,95190.0,0.052539]
[1736380258350,0.052537,95194.0,95190.0,0.052539]
[1736380258549,0.052537,95194.0,95182.0,0.8324]
[1736380258550,0.052542,95185.0,95182.0,0.4716]
[1736380258754,0.052545,95180.0,95174.0,0.3608]
[1736380258949,0.052546,95179.0,95174.0,0.3608]
[1736380259150,0.14,95179.0,95174.0,0.3608]
[1736380259351,0.052546,95178.0,95174.0,0.3608]
[1736380259551,0.182546,95178.0,95174.0,0.37142934]
[1736380260357,0.13,95178.0,95177.0,0.009]
[1736380260558,0.13,95178.0,95177.0,0.014]
[1736380261758,0.131,95178.0,95177.0,0.005]
[1736380262155,0.131,95178.0,95175.0,0.052547]
[1736380262953,0.131,95178.0,95177.0,0.004]
[1736380263355,0.13,95178.0,95177.0,0.013]
[1736380263763,0.13,95178.0,95177.0,0.009]
[1736380263956,0.13,95178.0,95175.0,0.066547]
[1736380265062,0.13,95178.0,95176.0,1.5]
[1736380265562,0.13,95178.0,95177.0,0.004]
[1736380266153,0.13,95178.0,95177.0,0.009]
[1736380266557,0.13,95178.0,95177.0,0.061546]
[1736380267054,0.13,95178.0,95177.0,1.565546]
[1736380267657,0.13,95178.0,95177.0,0.065546]
[1736380268157,0.13,95178.0,95177.0,1.565546]
[1736380268356,0.22159845,95184.0,95177.0,0.065546]
[1736380268550,0.00056001,95198.0,95197.0,0.052535]
[1736380268754,0.14,95198.0,95197.0,0.052535]
[1736380269263,0.26506318,95198.0,95197.0,0.052535]
[1736380270060,0.26506318,95198.0,95197.0,0.054535]
[1736380270261,0.14,95198.0,95197.0,0.054535]
[1736380270461,0.14,95198.0,95197.0,0.055535]
[1736380271465,0.14,95198.0,95197.0,0.42702729]
[1736380271668,0.12506318,95215.0,95213.0,0.052526]
[1736380271858,0.25506318,95215.0,95214.0,0.0755]
[1736380272377,0.12506318,95215.0,95214.0,0.0755]
[1736380273158,0.15734522,95221.0,95220.0,0.052523]
[1736380273357,0.15734522,95221.0,95220.0,0.413323]
[1736380273567,0.00157581,95228.0,95227.0,0.052519]
[1736380273759,0.03157581,95228.0,95227.0,0.052519]
[1736380275463,0.03157581,95228.0,95227.0,0.056519]
[1736380276069,0.03157581,95228.0,95227.0,0.057519]
[1736380276660,0.03157581,95228.0,95227.0,0.056519]
[1736380276867,0.03157581,95228.0,95227.0,0.057519]
[1736380278371,0.03157581,95228.0,95227.0,0.06818316]
[1736380279665,0.03157581,95228.0,95227.0,0.01566416]
[1736380280166,0.03157581,95228.0,95227.0,0.005]
[1736380281867,0.03457581,95228.0,95227.0,0.001]
[1736380282657,0.03457581,95228.0,95218.0,0.11645]
[1736380282864,0.03457581,95228.0,95223.0,0.052521]
[1736380283057,0.03457581,95228.0,95226.0,0.052519]
[1736380284665,0.03557581,95228.0,95226.0,0.052519]
[1736380285171,0.03357581,95228.0,95226.0,0.052519]
[1736380285376,0.03257581,95228.0,95226.0,0.052519]
[1736380285865,0.03157581,95228.0,95226.0,0.052519]
[1736380286065,0.03157581,95228.0,95226.0,0.053519]
[1736380290565,0.03157581,95228.0,95227.0,1.5]
[1736380291071,0.03157581,95228.0,95226.0,0.053519]
[1736380292859,0.03157581,95228.0,95226.0,0.001]
[1736380293072,0.03157581,95228.0,95221.0,0.3608]
[1736380293073,0.129019,95227.0,95221.0,0.3608]
[1736380293270,0.3608,95225.0,95218.0,0.4708]
[1736380293465,0.052523,95220.0,95218.0,0.4708]
[1736380293666,0.192523,95220.0,95218.0,0.4708]
[1736380294066,0.192523,95220.0,95218.0,0.3546]
[1736380295674,0.193523,95220.0,95218.0,0.3546]
[1736380296166,0.194523,95220.0,95218.0,0.3546]
[1736380297366,0.0712,95219.0,95218.0,0.3546]
[1736380297569,0.2212,95219.0,95218.0,0.3546]
[1736380298572,0.052529,95209.0,95204.0,0.052531]
[1736380298880,0.05253,95207.0,95204.0,0.052531]
[1736380299082,0.3608,95205.0,95204.0,0.052531]
[1736380299281,0.5108,95205.0,95204.0,0.052531]
[1736380299481,0.5846,95205.0,95204.0,0.052531]
[1736380299781,0.2238,95205.0,95204.0,0.052531]
[1736380300577,0.052532,95203.0,95199.0,0.052534]
[1736380300780,0.202532,95203.0,95200.0,0.052534]
[1736380302079,0.202532,95203.0,95201.0,0.052533]
[1736380303782,0.202532,95203.0,95201.0,0.053533]
[1736380315089,0.15,95203.0,95202.0,0.052533]
[1736380317800,0.15,95203.0,95197.0,0.37130376]
[1736380317801,0.15,95203.0,95197.0,0.42383876]
[1736380317991,0.052533,95202.0,95198.0,0.052535]
[1736380318193,0.14,95202.0,95197.0,0.37130376]
[1736380318392,0.052535,95198.0,95197.0,0.37130376]
[1736380318589,0.182535,95198.0,95197.0,0.37130376]
[1736380318789,0.052536,95195.0,95189.0,0.18733815]
[1736380318999,0.052537,95194.0,95189.0,0.18733815]
[1736380319201,0.283137,95194.0,95189.0,0.18733815]
[1736380319807,0.283137,95194.0,95179.0,0.18733815]
[1736380319992,0.283137,95194.0,95193.0,0.00257548]
[1736380320394,0.283137,95194.0,95193.0,0.00657548]
[1736380320596,0.33474176,95194.0,95193.0,0.00657548]
[1736380321201,0.33474176,95194.0,95193.0,0.005]
[1736380321499,0.052545,95180.0,95179.0,0.23988315]
[1736380321702,0.212545,95180.0,95179.0,0.052545]
[1736380322598,0.212545,95180.0,95179.0,0.056545]
[1736380323194,0.212545,95180.0,95179.0,0.065545]
[1736380329097,0.212545,95180.0,95179.0,0.013]
[1736380336399,0.212545,95180.0,95179.0,0.02333185]
[1736380342000,0.052552,95167.0,95166.0,0.18733815]
[1736380342223,0.052554,95163.0,95162.0,0.25156325]
[1736380342413,0.052554,95163.0,95158.0,0.31378546]
[1736380342414,0.202554,95163.0,95158.0,0.31378546]
[1736380342606,0.05256,95153.0,95152.0,0.37654255]
[1736380342806,0.18256,95153.0,95152.0,0.37654255]
[1736380343808,0.18256,95153.0,95152.0,0.38554255]
[1736380343809,0.18356,95153.0,95152.0,0.38554255]
[1736380344008,0.18356,95153.0,95152.0,0.38954255]
[1736380344406,0.18356,95153.0,95135.0,0.01047605]
[1736380344407,0.052567,95139.0,95135.0,0.01047605]
[1736380344604,0.202567,95139.0,95135.0,0.01047605]
[1736380344809,0.052569,95136.0,95135.0,0.01047605]
[1736380345010,0.05257,95134.0,95133.0,0.3608]
[1736380345210,0.21257,95134.0,95133.0,0.3608]
[1736380345509,0.052575,95126.0,95125.0,0.0774]
[1736380345904,0.10617984,95135.0,95125.0,0.4382]
[1736380346113,0.26617984,95135.0,95125.0,0.4382]
[1736380346310,0.001,95134.0,95133.0,0.006]
[1736380346511,0.18457,95134.0,95133.0,0.015]
[1736380346916,0.18457,95134.0,95133.0,0.006]
[1736380347115,0.052574,95127.0,95125.0,0.46598795]
[1736380348620,0.052574,95127.0,95125.0,0.45798795]
[1736380348810,0.046574,95127.0,95125.0,0.45798795]
[1736380349126,0.046574,95127.0,95125.0,0.44898795]
[1736380349617,0.047574,95127.0,95125.0,0.45398795]
[1736380349914,0.047574,95127.0,95125.0,0.50656295]
[1736380349915,0.002,95127.0,95125.0,0.50656295]
[1736380350317,0.002,95127.0,95126.0,1.5]
[1736380352122,0.131,95127.0,95126.0,1.5]
[1736380352324,0.132,95127.0,95125.0,0.50156295]
[1736380352915,0.131,95127.0,95125.0,2.00156295]
[1736380354015,0.131,95127.0,95125.0,0.50156295]
[1736380355118,0.131,95127.0,95125.0,0.50356295]
[1736380358925,0.131,95127.0,95126.0,0.3608]
[1736380360119,0.131,95127.0,95126.0,0.3638]
[1736380362422,0.183574,95127.0,95126.0,0.3638]
[1736380362623,0.183574,95127.0,95126.0,0.3628]
[1736380364424,0.12559783,95137.0,95126.0,0.3628]
[1736380364425,0.10617984,95136.0,95126.0,0.3628]
[1736380364739,0.052574,95127.0,95126.0,0.3628]
[1736380365025,0.202574,95127.0,95126.0,0.3628]
[1736380365422,0.202574,95127.0,95126.0,0.3608]
[1736380365727,0.202574,95127.0,95126.0,0.3628]
[1736380367425,0.203574,95127.0,95126.0,0.3628]
[1736380371629,0.203574,95127.0,95126.0,0.002]
[1736380371934,0.052581,95114.0,95111.0,0.052583]
[1736380372134,0.052581,95114.0,95107.0,0.3608]
[1736380372525,0.052581,95114.0,95107.0,0.413385]
[1736380372832,0.052584,95109.0,95107.0,0.413385]
[1736380373220,0.052584,95109.0,95107.0,0.3608]
[1736380374028,0.192584,95109.0,95107.0,0.3608]
[1736380374233,0.193584,95109.0,95107.0,0.3608]
[1736380374434,0.35099042,95109.0,95107.0,0.37113036]
[1736380375028,0.34899042,95109.0,95107.0,0.37113036]
[1736380376139,0.052584,95108.0,95092.0,0.25212776]
[1736380376438,0.052588,95101.0,95092.0,0.25128776]
[1736380376637,0.192588,95101.0,95092.0,0.25128776]
[1736380377328,0.192588,95101.0,95088.0,0.1538]
[1736380377329,0.052595,95089.0,95088.0,0.0764]
[1736380378228,0.052595,95089.0,95087.0,0.3608]
[1736380379339,0.21100142,95089.0,95087.0,0.3608]
[1736380379635,0.35100142,95089.0,95087.0,0.3608]
[1736380380028,0.35200142,95089.0,95087.0,0.3608]
[1736380380423,0.194595,95089.0,95087.0,0.3608]
[1736380380827,0.194595,95089.0,95087.0,0.413396]
[1736380381931,0.141,95089.0,95087.0,0.413396]
[1736380385236,0.1,95100.0,95087.0,0.413396]
[1736380385437,0.25,95100.0,95099.0,0.413389]
[1736380391530,0.25,95100.0,95099.0,0.42377238]
[1736380400847,0.25,95100.0,95099.0,0.37118338]
[1736380402039,0.25,95100.0,95099.0,0.42377238]
[1736380416466,0.25,95100.0,95099.0,0.67506014]
[1736380418870,0.25,95100.0,95099.0,0.42377238]
[1736380423067,0.40740642,95100.0,95099.0,0.42377238]
[1736380428466,0.25740642,95100.0,95099.0,0.42377238]
[1736380429065,0.1,95100.0,95099.0,2.17506014]
[1736380430272,0.1,95100.0,95099.0,1.92377238]
[1736380431773,0.08907989,95100.0,95099.0,1.92377238]
[1736380433969,0.03936261,95100.0,95099.0,1.92377238]
[1736380434172,0.15740642,95112.0,95103.0,0.052587]
[1736380434375,0.30740642,95112.0,95111.0,0.413383]
[1736380435383,0.15,95112.0,95111.0,0.413383]
[1736380436084,0.151,95112.0,95111.0,0.413383]
[1736380436673,0.153,95112.0,95111.0,1.913383]
[1736380436878,0.156,95112.0,95111.0,1.913383]
[1736380437879,0.153,95112.0,95111.0,1.913383]
[1736380439085,0.151,95112.0,95111.0,1.913383]
[1736380440777,0.151,95112.0,95111.0,2.384703]
[1736380441288,0.151,95112.0,95111.0,2.39350601]
[1736380442285,0.152,95112.0,95111.0,2.39350601]
[1736380444088,0.153,95112.0,95111.0,2.39350601]
[1736380446589,0.152,95112.0,95111.0,2.39350601]
[1736380446883,0.151,95112.0,95111.0,2.39350601]
[1736380448278,0.151,95112.0,95111.0,0.89350601]
[1736380448481,0.152,95112.0,95111.0,0.89350601]
[1736380459395,0.30940642,95112.0,95111.0,0.89350601]
[1736380459587,0.36198842,95112.0,95111.0,0.36960301]
[1736380459786,0.36198842,95112.0,95111.0,0.3608]
[1736380459987,0.30940642,95112.0,95108.0,0.25221013]
[1736380460187,0.052584,95109.0,95108.0,0.25221013]
[1736380460390,0.182584,95109.0,95108.0,0.25221013]
[1736380460595,0.052587,95103.0,95102.0,0.31507509]
[1736380460789,0.212587,95103.0,95102.0,0.07977509]
[1736380460990,0.052593,95092.0,95091.0,0.3608]
[1736380461189,0.192593,95092.0,95085.0,0.42888413]
[1736380461501,0.052594,95091.0,95085.0,0.43792012]
[1736380461692,0.202594,95091.0,95085.0,0.43792012]
[1736380461997,0.052597,95086.0,95085.0,0.37628713]
[1736380462591,0.052597,95086.0,95084.0,0.3608]
[1736380463295,0.212597,95086.0,95084.0,0.3608]
[1736380463895,0.05114757,95085.0,95084.0,0.3608]
[1736380464099,0.19114757,95085.0,95084.0,0.3608]
[1736380465197,0.14,95085.0,95084.0,0.3608]
[1736380465586,0.141,95085.0,95084.0,0.3608]
[1736380466184,0.142,95085.0,95084.0,0.3608]
[1736380467595,0.144,95085.0,95084.0,0.3608]
[1736380468690,0.0206,95085.0,95084.0,0.3608]
[1736380468889,0.1571278,95089.0,95088.0,0.052596]
[1736380469086,0.2371278,95089.0,95088.0,0.052596]
[1736380469287,0.45744,95119.0,95090.0,0.052594]
[1736380469288,0.1571278,95091.0,95090.0,0.052594]
[1736380469489,0.3071278,95091.0,95090.0,0.052594]
[1736380469898,0.18892604,95099.0,95090.0,0.052594]
[1736380470099,0.34892604,95099.0,95098.0,0.41339]
[1736380470403,0.16,95099.0,95098.0,1.91339]
[1736380470992,0.16,95099.0,95098.0,0.41339]
[1736380471403,0.16,95099.0,95098.0,1.91339]
[1736380473303,0.161,95099.0,95098.0,1.91339]
[1736380474397,0.161,95099.0,95098.0,1.91539]
[1736380475094,0.161,95099.0,95098.0,1.91439]
[1736380475694,0.161,95099.0,95098.0,0.41439]
[1736380476104,0.161,95099.0,95098.0,1.91439]
[1736380477089,0.161,95099.0,95098.0,1.92345311]
[1736380483006,0.161,95099.0,95098.0,0.42345311]
[1736380495207,0.12578086,95113.0,95098.0,0.42345311]
[1736380495517,0.27578086,95113.0,95112.0,0.413382]
[1736380496210,0.15,95113.0,95112.0,0.413382]
[1736380497213,0.151,95113.0,95112.0,0.413382]
[1736380497917,0.152,95113.0,95112.0,0.413382]
[1736380498117,0.151,95113.0,95112.0,0.413382]
[1736380498319,0.152,95113.0,95112.0,0.413382]
[1736380498718,0.151,95113.0,95112.0,0.414382]
[1736380500321,0.151,95113.0,95112.0,0.3618]
[1736380500723,0.202582,95113.0,95112.0,0.001]
[1736380500917,0.15,95113.0,95101.0,0.31429635]
[1736380501119,0.052585,95107.0,95101.0,0.32353344]
[1736380501418,0.052585,95107.0,95106.0,0.18919015]
[1736380501419,0.15,95107.0,95106.0,0.18919015]
[1736380501618,0.05259,95099.0,95097.0,0.31429635]
[1736380501916,0.55339,95099.0,95097.0,0.31429635]
[1736380502510,0.85339,95099.0,95097.0,0.31429635]
[1736380502711,0.1908883,95098.0,95095.0,0.4714]
[1736380502908,0.052591,95097.0,95095.0,0.4714]
[1736380503119,0.192591,95097.0,95095.0,0.4714]
[1736380503422,0.49160476,95097.0,95082.0,0.052598]
[1736380503728,0.052598,95084.0,95082.0,0.052598]
[1736380503919,0.192598,95084.0,95082.0,0.052598]
[1736380505020,0.193598,95084.0,95082.0,0.052598]
[1736380505516,0.05114248,95083.0,95082.0,0.052598]
[1736380505716,0.18114248,95083.0,95082.0,0.052598]
[1736380505918,0.18114248,95083.0,95078.0,0.00938464]
[1736380506119,0.18114248,95083.0,95076.0,0.3608]
[1736380506626,0.182598,95083.0,95077.0,0.052602]
[1736380507113,0.182598,95083.0,95078.0,0.052601]
[1736380507313,0.183598,95083.0,95078.0,0.052601]
[1736380508022,0.182598,95083.0,95078.0,0.052601]
[1736380508319,0.183598,95083.0,95076.0,0.37043017]
[1736380508623,0.183598,95083.0,95080.0,0.0526]
[1736380510318,0.12561277,95082.0,95080.0,0.0526]
[1736380510525,0.27561277,95082.0,95080.0,0.0526]
[1736380510913,0.27561277,95082.0,95076.0,0.37043017]
[1736380511716,0.27661277,95082.0,95076.0,0.37043017]
[1736380511915,0.32921177,95082.0,95076.0,0.37043017]
[1736380513427,0.203599,95082.0,95076.0,0.37043017]
[1736380514329,0.151,95082.0,95081.0,0.052599]
[1736380515325,0.151,95082.0,95081.0,1.552599]
[1736380515727,0.0246,95082.0,95081.0,1.552599]
[1736380516129,0.0246,95082.0,95081.0,0.052599]
[1736380516523,0.12561277,95092.0,95091.0,0.052594]
[1736380516728,0.26561277,95092.0,95091.0,0.052594]
[1736380517228,0.26561277,95092.0,95077.0,0.0775]
[1736380517427,0.26561277,95092.0,95078.0,0.052601]
[1736380517630,0.62641277,95092.0,95086.0,0.052597]
[1736380517829,0.62741277,95092.0,95086.0,0.052597]
[1736380518030,0.5018,95092.0,95086.0,0.052597]
[1736380518432,0.5008,95092.0,95086.0,0.052597]
[1736380518818,0.5018,95092.0,95086.0,0.052597]
[1736380519235,0.62741277,95092.0,95086.0,0.052597]
[1736380519431,0.62741277,95092.0,95083.0,0.052598]
[1736380519732,0.052596,95088.0,95083.0,0.052598]
[1736380519923,0.182596,95088.0,95083.0,0.052598]
[1736380520627,0.182596,95088.0,95084.0,0.052597]
[1736380521028,0.183596,95088.0,95084.0,0.052597]
[1736380521525,0.131,95088.0,95084.0,0.052597]
[1736380521725,0.131,95088.0,95079.0,0.0819]
[1736380521927,0.131,95088.0,95087.0,0.052596]
[1736380524131,0.12561277,95091.0,95090.0,0.052594]
[1736380524337,0.16,95091.0,95090.0,0.052594]
[1736380526228,0.12561277,95100.0,95099.0,0.052589]
[1736380526428,0.14401277,95100.0,95099.0,0.413389]
[1736380527628,0.14,95100.0,95099.0,0.413389]
[1736380528338,0.142,95100.0,95099.0,0.413389]
[1736380529745,0.142,95100.0,95099.0,0.42296717]
[1736380530242,0.14,95100.0,95099.0,0.42296717]
[1736380530443,0.14,95100.0,95099.0,0.37137817]
[1736380530647,0.192589,95100.0,95099.0,0.37137817]
[1736380530831,0.192589,95100.0,95099.0,0.001]
[1736380531034,0.192589,95100.0,95087.0,0.25125392]
[1736380531035,0.14,95100.0,95087.0,0.25125392]
[1736380531235,0.052595,95089.0,95087.0,0.25125392]
[1736380531542,0.192595,95089.0,95087.0,0.25125392]
[1736380531843,0.192595,95089.0,95087.0,0.2610642]
[1736380532044,0.192595,95089.0,95087.0,0.00981028]
[1736380532248,0.192595,95089.0,95082.0,0.052599]
[1736380532435,0.192595,95089.0,95080.0,0.10627772]
[1736380532436,0.14,95089.0,95080.0,0.10627772]
[1736380532746,0.052598,95084.0,95078.0,0.3608]
[1736380532947,0.192598,95084.0,95078.0,0.3608]
[1736380533838,0.0526,95079.0,95078.0,0.3608]
[1736380534042,0.1926,95079.0,95078.0,0.3608]
[1736380535241,0.1936,95079.0,95078.0,0.3608]
[1736380536944,0.052606,95070.0,95065.0,0.052608]
[1736380537141,0.192606,95070.0,95060.0,0.46707772]
[1736380537343,0.14,95070.0,95068.0,0.052606]
[1736380537642,0.14,95070.0,95069.0,0.052606]
[1736380538338,0.141,95070.0,95069.0,0.052606]
[1736380540342,0.14,95070.0,95069.0,0.052606]
[1736380540547,0.141,95070.0,95069.0,0.052606]
[1736380540743,0.141,95070.0,95069.0,0.001]
[1736380545648,0.193605,95070.0,95069.0,0.001]
[1736380550554,0.141,95070.0,95069.0,0.053606]
[1736380551456,0.00056001,95077.0,95076.0,0.052602]
[1736380551759,0.14,95077.0,95076.0,0.052602]
[1736380553446,0.15715656,95093.0,95076.0,0.052602]
[1736380553652,0.21715656,95093.0,95092.0,0.413393]
[1736380555360,0.065,95093.0,95092.0,0.413393]
[1736380555559,0.065,95093.0,95092.0,0.42315239]
[1736380555867,0.06,95093.0,95092.0,0.06235239]
[1736380557360,0.061,95093.0,95092.0,0.06235239]
[1736380565672,0.061,95093.0,95092.0,1.56235239]
[1736380566066,0.00157786,95104.0,95103.0,0.052587]
[1736380566263,0.14157786,95104.0,95103.0,0.413387]
[1736380570075,0.14157786,95104.0,95103.0,0.414387]
[1736380570871,0.14257786,95104.0,95103.0,0.414387]
[1736380572167,0.14257786,95104.0,95103.0,0.42438785]
[1736380586185,0.14257786,95104.0,95103.0,1.92438785]
[1736380592683,0.14257786,95104.0,95103.0,1.92338785]
[1736380592884,0.14257786,95104.0,95103.0,1.92438785]
[1736380595594,0.14257786,95104.0,95103.0,1.92338785]
[1736380595795,0.14257786,95104.0,95103.0,1.92438785]
[1736380596787,0.14257786,95104.0,95103.0,2.39570785]
[1736380600395,0.14257786,95104.0,95103.0,0.89570785]
[1736380610101,0.14257786,95104.0,95103.0,0.37180085]
[1736380610304,0.19516486,95104.0,95103.0,0.01100085]
[1736380610601,0.19416486,95104.0,95103.0,0.001]
[1736380611201,0.05259,95098.0,95097.0,0.31429635]
[1736380611507,0.19259,95098.0,95097.0,0.32410486]
[1736380612105,0.14,95098.0,95097.0,0.00980851]
[1736380612405,0.14,95098.0,95095.0,0.052592]
[1736380612906,0.14,95098.0,95090.0,0.3608]
[1736380612907,0.142,95098.0,95090.0,0.3608]
[1736380613107,0.142,95098.0,95096.0,0.052591]
[1736380613495,0.05115243,95097.0,95096.0,0.052591]
[1736380613699,0.20115243,95097.0,95096.0,0.052591]
[1736380615304,0.20415243,95097.0,95096.0,0.052591]
[1736380616205,0.3104754,95097.0,95096.0,0.052591]
[1736380617210,0.153,95097.0,95096.0,0.052591]
[1736380617412,0.154,95097.0,95096.0,0.052591]
[1736380617807,0.154,95097.0,95096.0,1.552591]
[1736380618107,0.15025862,95097.0,95096.0,1.552591]
[1736380618309,0.03,95097.0,95096.0,1.552591]
[1736380618699,0.032,95097.0,95096.0,1.552591]
[1736380618912,0.0105,95097.0,95096.0,1.552591]
[1736380619105,0.05327565,95104.0,95103.0,0.052587]
[1736380619410,0.19327565,95104.0,95103.0,0.413387]
[1736380619812,0.14,95104.0,95103.0,0.413387]
[1736380621415,0.141,95104.0,95103.0,0.415387]
[1736380622316,0.141,95104.0,95103.0,0.496787]
[1736380622517,0.141,95104.0,95103.0,0.50694962]
[1736380625328,0.11897,95104.0,95103.0,0.50694962]
[1736380631629,0.11897,95104.0,95103.0,0.97822962]
[1736380640444,0.11797,95104.0,95103.0,0.97722962]
[1736380640639,0.11897,95104.0,95103.0,0.97822962]
[1736380641340,0.11897,95104.0,95103.0,1.16681746]
[1736380643048,0.11897,95104.0,95103.0,1.16581746]
[1736380643242,0.11897,95104.0,95103.0,1.16681746]
[1736380643944,0.11797,95104.0,95103.0,1.16481746]
[1736380644148,0.11897,95104.0,95103.0,1.16681746]
[1736380644535,0.11897,95104.0,95103.0,1.16581746]
[1736380644741,0.11897,95104.0,95103.0,1.16681746]
[1736380645336,0.11897,95104.0,95103.0,0.97822962]
[1736380646846,0.11897,95104.0,95103.0,1.22963271]
[1736380648247,0.11897,95104.0,95103.0,0.97822962]
[1736380649752,0.11897,95104.0,95103.0,1.21112597]
[1736380652743,0.11897,95104.0,95103.0,1.53800783]
[1736380655454,0.11897,95104.0,95103.0,1.21112597]
[1736380658061,0.11897,95104.0,95103.0,1.53769842]
[1736380659155,0.11897,95104.0,95103.0,1.21112597]
[1736380664963,0.11797,95104.0,95103.0,1.21012597]
[1736380665169,0.11797,95104.0,95103.0,1.21112597]
[1736380667559,0.11797,95104.0,95103.0,1.5378839]
[1736380672571,0.11797,95104.0,95103.0,1.22358755]
[1736380673964,0.11797,95104.0,95103.0,0.89682962]
[1736380674466,0.11797,95104.0,95103.0,0.89582962]
[1736380674670,0.11797,95104.0,95103.0,0.89682962]
[1736380675071,0.11797,95104.0,95103.0,1.21211888]
[1736380676173,0.11797,95104.0,95103.0,1.53907955]
[1736380681676,0.11797,95104.0,95103.0,1.22379029]
[1736380682669,0.11797,95104.0,95103.0,0.89682962]
[1736380683780,0.11797,95104.0,95103.0,0.89582962]
[1736380683981,0.24421252,95104.0,95103.0,1.21211938]
[1736380684572,0.24421252,95104.0,95103.0,1.21111938]
[1736380684781,0.24421252,95104.0,95103.0,1.21211938]
[1736380686571,0.24421252,95104.0,95103.0,0.89682962]
[1736380687081,0.24421252,95104.0,95103.0,0.89582962]
[1736380687282,0.24421252,95104.0,95103.0,0.89682962]
[1736380687982,0.24421252,95104.0,95103.0,0.89582962]
[1736380689279,0.24421252,95104.0,95103.0,2.39582962]
[1736380690586,0.11797,95104.0,95103.0,2.72273403]
[1736380697088,0.11797,95104.0,95103.0,3.03799789]
[1736380699483,0.19175711,95120.0,95103.0,2.98541089]
[1736380699685,0.00157737,95124.0,95119.0,0.774178]
[1736380699987,0.12,95124.0,95123.0,0.052576]
[1736380700188,0.12,95124.0,95123.0,1.552576]
[1736380700877,0.12,95124.0,95123.0,1.87948041]
[1736380701487,0.123,95124.0,95123.0,1.87948041]
[1736380702175,0.127,95124.0,95123.0,1.87948041]
[1736380702487,0.127,95124.0,95123.0,1.552576]
[1736380703385,0.124,95124.0,95123.0,1.552576]
[1736380703587,0.126,95124.0,95121.0,0.31458923]
[1736380703893,0.205576,95123.0,95121.0,0.31458923]
[1736380704189,0.345576,95123.0,95121.0,0.31458923]
[1736380704492,0.345576,95123.0,95121.0,0.32466501]
[1736380704693,0.052577,95122.0,95121.0,0.31458923]
[1736380704885,0.192577,95122.0,95121.0,0.31458923]
[1736380705085,0.192577,95122.0,95110.0,0.25835154]
[1736380705086,0.052578,95119.0,95110.0,0.25835154]
[1736380705585,0.202578,95119.0,95110.0,0.25835154]
[1736380705790,0.202578,95119.0,95113.0,0.052581]
[1736380706189,0.15,95119.0,95118.0,0.052579]
[1736380706393,0.1,95140.0,95138.0,0.052568]
[1736380706590,0.26,95140.0,95135.0,0.3608]
[1736380707397,0.6208,95140.0,95130.0,0.06968276]
[1736380707589,0.05257,95135.0,95122.0,0.052577]
[1736380707785,0.18257,95135.0,95129.0,0.25155837]
[1736380708892,0.18757,95135.0,95125.0,0.052575]
[1736380709587,0.052573,95129.0,95122.0,0.01024509]
[1736380709786,0.052573,95129.0,95118.0,0.18841148]
[1736380709787,0.052574,95127.0,95118.0,0.18841148]
[1736380709988,0.052575,95126.0,95118.0,0.18841148]